Cogmind - Beta 14 @@@ ROGUE MODE // 2024.10.15 @ 12:08:09 Player: Triffids Result: Self-destructed Performance ------------- Evolutions (3) 1500 Regions Visited (4) 800 Robots Destroyed (58) 290 Value Destroyed (1469) 1469 Prototype IDs (6) 120 Alien Tech Used (0) 0 Bonus (0) 0 TOTAL SCORE: 4179 Bonus ------- None Cogmind --------- Core Integrity 671/700 Matter 300/300 Energy 275/275 System Corruption 0% Temperature Cool (0) Movement Walking (122) Location -7/Factory Parts ------- > --- POWER (1) -------- Deuterium Engine > --- PROPULSION (4) --- Aluminum Leg Aluminum Leg Aluminum Leg Improved Titanium Leg > --- UTILITY (6) ------ Advanced Heat Sink Medium Storage Unit Improved Sensor Array Improved Signal Interpreter Medium Armor Plating Hacking Suite > --- WEAPON (2) ------- Field Laser Advanced Beam Cannon > --- INVENTORY (10) --- Nuclear Core Aluminum Leg Aluminum Leg Improved Light Armor Plating System Restoration Module Particle Gun Ion Cannon Heavy Assault Rifle Gauss Rifle Grenade Launcher Peak State ------------ > --- POWER ------------ Deuterium Engine > --- PROPULSION ------- Aluminum Leg Aluminum Leg Aluminum Leg Improved Titanium Leg > --- UTILITY ---------- Advanced Heat Sink Medium Storage Unit Improved Sensor Array Improved Signal Interpreter Medium Armor Plating Hacking Suite > --- WEAPON ----------- Field Laser Advanced Beam Cannon > --- INVENTORY -------- Nuclear Core Aluminum Leg Aluminum Leg Aluminum Leg Hardened Light Armor Plating Particle Gun Ion Cannon Heavy Assault Rifle Gauss Rifle Grenade Launcher [Rating: 35] Favorites ----------- Power Deuterium Engine Engine Deuterium Engine Propulsion Aluminum Leg Leg Aluminum Leg Utility Medium Storage Unit Device Sensor Array Storage Medium Storage Unit Processor Improved Signal Interpreter Hackware Hacking Suite Protection Medium Armor Plating Weapon Advanced Beam Cannon Energy Gun Field Laser Energy Cannon Advanced Beam Cannon Ballistic Gun Assault Rifle Launcher Grenade Launcher Build | -11 -10 -9 -8 -7 ------- Run | Yrd Mat Mat Mat Fac Slots Evolved 6 | . . 2 2 2 Power . | . . . . . Propulsion 2 | . . 2 . . Utility 4 | . . . 2 2 Weapon . | . . . . . Parts Attached 50 | 7 6 14 17 6 Power 5 | 1 1 2 1 . Engine 5 | 1 1 2 1 . Core . | . . . . . Reactor . | . . . . . Propulsion 18 | 2 3 5 6 2 Treads . | . . . . . Leg 18 | 2 3 5 6 2 Wheel . | . . . . . Hover . | . . . . . Flight . | . . . . . Utility 14 | 2 1 3 6 2 Device 6 | 1 1 1 2 1 Storage 2 | 1 . 1 . . Processor 2 | . . . 2 . Hackware 1 | . . . . 1 Protection 3 | . . 1 2 . Artifact . | . . . . . Weapon 13 | 2 1 4 4 2 Energy Gun 2 | 1 . . 1 . Energy Cannon 5 | . 1 1 2 1 Ballistic Gun 4 | 1 . 2 1 . Ballistic Cannon . | . . . . . Launcher 2 | . . 1 . 1 Special Weapon . | . . . . . Impact Weapon . | . . . . . Slashing Weapon . | . . . . . Piercing Weapon . | . . . . . Special Melee Weapon . | . . . . . Unidentified Prototypes 1 | . . 1 . . Parts Lost 4 | . . . 4 . Power . | . . . . . Propulsion 3 | . . . 3 . Utility . | . . . . . Weapon 1 | . . . 1 . Highest Loss Streak 3 | . . . 3 . To Critical Strikes . | . . . . . Average Slot Usage (%) 99 | . 100 100 99 100 Engine 10 | . 14 11 9 7 Leg 34 | . 28 44 35 30 Device 11 | . 14 10 9 15 Storage 10 | . 14 11 9 7 Processor 4 | . . . 9 7 Hackware 1 | . . . . 7 Protection 4 | . . . 9 7 Energy Gun 6 | . 11 . 6 7 Energy Cannon 7 | . 2 11 9 6 Ballistic Gun 6 | . 14 10 2 . Peak Build Rating 35 | 7 8 14 26 35 Average Rating 18 | 5 7 12 22 34 On Entrance 11 | . 7 8 14 26 Naked Turns . | . . . . . Heaviest Build 35 | 14 16 26 35 35 Greatest Support 50 | 20 20 40 40 50 Greatest Overweight (x) 1 | . . . 1 . Average Overweight (x) . | . . . . . Largest Inventory Capacity 10 | 8 8 10 10 10 Average Capacity 9 | 7 8 9 10 10 Most Carried 10 | 5 8 10 10 10 Average Carried 8 | 2 6 9 9 9 Final Capacity 10 | 8 8 10 10 10 Final Carried 10 | 3 8 10 10 10 Class Distribution -------------------- 70% | Scavenger-Mutant 29% | Mutant Dominant Class ---------------- Mutant | -10/Materials Scavenger-Mutant | -9/Materials Scavenger-Mutant | -8/Materials Scavenger-Mutant | -7/Factory Resources | -11 -10 -9 -8 -7 ----------- Run | Yrd Mat Mat Mat Fac Matter Collected 974 | 306 156 207 237 68 Remotely . | . . . . . Salvage Created 2050 | 106 375 442 916 211 Parts 116 | 7 28 31 41 9 Haulers Intercepted 6 | . 1 2 2 1 Recyclers Shooed . | . . . . . Parts Field Recycled . | . . . . . Retrieved Matter . | . . . . . Parts Self-Destructed . | . . . . . Prevented . | . . . . . Kills | -11 -10 -9 -8 -7 ------- Run | Yrd Mat Mat Mat Fac Combat Hostiles Destroyed 37 | . 9 11 13 4 Guns 19 | . 9 3 5 2 Cannons 14 | . . 5 7 2 AOE 3 | . . 3 . . Classes Destroyed 10 | 2 5 1 1 1 Worker 4 | . . . 4 . Tunneler 2 | 2 . . . . Hauler 6 | . 1 2 2 1 Recycler 1 | 1 . . . . Operator 3 | . 2 1 . . Watcher 5 | . 1 1 2 1 Swarmer 12 | . 3 6 . 3 Grunt 17 | . 6 2 9 . Sentry 7 | . . 3 4 . Hunter 1 | . . . . 1 Best Kill Streak 9 | 1 6 4 9 3 Combat Bots Only 6 | . 6 4 5 3 Max Kills in Single Turn 2 | 1 1 1 2 1 Gunslinging . | . . . . . Exploded 1 | . . 1 . . Melee . | . . . . . Uniques/NPCs Destroyed . | . . . . . Combat | -11 -10 -9 -8 -7 -------- Run | Yrd Mat Mat Mat Fac Hostile Shots Fired 188 | . 36 56 79 17 Missed 59 | . 10 24 20 5 Damage Taken 1850 | . 314 352 958 226 Core 260 | . 62 45 124 29 Absorbed by Shields . | . . . . . Core Remaining (%) 85 | 100 75 88 77 . Volleys Fired 143 | 12 32 34 48 17 Largest 2 | 2 2 2 2 2 Hottest 131 | 60 80 98 131 131 Shots Fired 285 | 24 64 68 96 33 Gun 179 | 24 62 29 48 16 Cannon 100 | . 2 34 48 16 Launcher 6 | . . 5 . 1 Special . | . . . . . Kinetic 80 | 12 32 29 7 . Thermal 199 | 12 32 34 89 32 Explosive 6 | . . 5 . 1 Electromagnetic . | . . . . . Robot Hit Streak 27 | 4 13 27 8 10 Robot Miss Streak 4 | 2 2 4 3 2 Penetration Max . | . . . . . Secondary Targets 2 | . 2 . . . Max Gunslinging Chain 1 | . 1 . . . Shots Hit Robots 178 | 13 43 36 64 22 Core Hits 88 | 4 23 19 35 7 Critical Kills 4 | . 1 1 1 1 Critical Parts Destroyed 1 | . 1 . . . Critical Strikes 9 | . 2 1 3 3 Burn 4 | . . . 2 2 Meltdown 3 | . . 1 1 1 Destroy 2 | . 2 . . . Melee Attacks . | . . . . . Impact . | . . . . . Slashing . | . . . . . Piercing . | . . . . . Sneak Attacks . | . . . . . Combat Hostiles . | . . . . . Follow-up Attacks . | . . . . . Damage Inflicted 3253 | 164 537 759 1361 432 Guns 1722 | 164 502 187 663 206 Cannons 1358 | . 35 405 692 226 Explosions 167 | . . 167 . . Melee . | . . . . . Ramming 6 | . . . 6 . Kinetic 655 | 101 248 187 119 . Thermal 2425 | 63 289 405 1236 432 Explosive 167 | . . 167 . . Electromagnetic . | . . . . . Impact . | . . . . . Slashing . | . . . . . Piercing . | . . . . . Highest Corruption . | . . . . . Average Corruption . | . . . . . Corruption Purged . | . . . . . Corruption Blocked . | . . . . . Overload Shots . | . . . . . Overflow Damage 51 | . . 49 . 2 Projectiles 2 | . . . . 2 Explosions 49 | . . 49 . . Melee . | . . . . . Knockbacks . | . . . . . Impact . | . . . . . Kinetic . | . . . . . Secondary . | . . . . . Self-Inflicted Damage 62 | . . 45 . 17 Shots 4 | . . 3 . 1 Rammed . | . . . . . Targets Rammed 2 | . . . 1 1 Kicked 2 | . . . 1 1 Crushed . | . . . . . Highest Temperature 291 | . 69 150 291 . Average Temperature 52 | . 27 49 67 . Received Heat Transfer 780 | . 186 45 549 . Siege Activations . | . . . . . Robots Corrupted . | . . . . . Combat Hostiles . | . . . . . Parts Fried . | . . . . . Impact Corruptions . | . . . . . Robots Melted 3 | . . 1 1 1 Combat Hostiles 1 | . . . 1 . Parts Melted 20 | . 3 2 10 5 Heat Transferred 5054 | 150 649 777 2479 999 Parts Sabotaged . | . . . . . Parts Stolen . | . . . . . Parts Stripped . | . . . . . Power Chain Reactions . | . . . . . Alert | -11 -10 -9 -8 -7 ------- Run | Yrd Mat Mat Mat Fac Peak Influence 419 | 15 229 362 419 371 Initial 190 | . 9 40 117 190 Average 184 | 8 87 171 283 230 Maximum Alert Level 2 | . 1 1 2 1 Low Security (%) 55 | 100 83 68 26 35 Level 1 42 | . 16 31 66 64 Level 2 1 | . . . 6 . Level 3 . | . . . . . Level 4 . | . . . . . Level 5 . | . . . . . High Security . | . . . . . Max Security . | . . . . . Squads Dispatched 5 | . . 2 2 1 Investigation . | . . . . . Extermination . | . . . . . Reinforcement 5 | . . 2 2 1 Assault . | . . . . . Garrison . | . . . . . Intercept . | . . . . . Searches Triggered . | . . . . . Construction Impeded 1 | . . . . 1 Haulers Reinforced . | . . . . . Active Scanning Responses . | . . . . . Cargo Convoy Interrupts . | . . . . . Stealth | -11 -10 -9 -8 -7 --------- Run | Yrd Mat Mat Mat Fac Distress Signals 3 | . 2 . 1 . Communications Jammed . | . . . . . Distress Signals . | . . . . . Times Spotted 57 | . 13 14 23 7 Peak Tracking Total 8 | . 4 3 8 3 Tactical Retreats 3 | . . . 1 2 Traps | -11 -10 -9 -8 -7 ------- Run | Yrd Mat Mat Mat Fac Traps Triggered 1 | . . . . 1 Indirectly . | . . . . . Trap Hack Attempts . | . . . . . Triggered . | . . . . . Disarmed . | . . . . . Reprogrammed . | . . . . . Reused . | . . . . . Traps Extracted . | . . . . . Installed . | . . . . . Triggered . | . . . . . Machines | -11 -10 -9 -8 -7 ---------- Run | Yrd Mat Mat Mat Fac Machines Disabled 1 | . . 1 . . Max in Single Turn 1 | . . 1 . . Garrison Access 1 | . . . 1 . Machines Repaired . | . . . . . Machines Dismantled . | . . . . . Machines Sabotaged . | . . . . . Overloaded Fab Kills . | . . . . . Hacking | -11 -10 -9 -8 -7 --------- Run | Yrd Mat Mat Mat Fac Machines Accessed 14 | . 5 4 4 1 Terminals 13 | . 5 4 3 1 Fabricators . | . . . . . Repair Stations . | . . . . . Recycling Units . | . . . . . Scanalyzers . | . . . . . Garrison Access 1 | . . . 1 . Total Hacks 43 | . 17 14 9 3 Successful 22 | . 9 7 4 2 Failed 21 | . 8 7 5 1 Catastrophic 1 | . . 1 . . Database Lockouts . | . . . . . Manual 27 | . 12 8 5 2 Terminals 42 | . 17 14 8 3 Fabricators . | . . . . . Repair Stations . | . . . . . Recycling Units . | . . . . . Scanalyzers . | . . . . . Garrison Access 1 | . . . 1 . Terminal Hacks 13 | . 7 4 1 1 Robot Analysis 2 | . 1 1 . . Prototype ID Bank 3 | . 1 1 . 1 Level Access Points 3 | . 1 1 1 . Branch Access Points 1 | . 1 . . . Terminal Index 1 | . 1 . . . Hauler Manifests 1 | . 1 . . . Zone Layout 2 | . 1 1 . . Fabricator Hacks . | . . . . . Repair Station Hacks . | . . . . . Recycling Unit Hacks . | . . . . . Scanalyzer . | . . . . . Garrison Access Hacks 1 | . . . 1 . Seal Access 1 | . . . 1 . Unauthorized Hacks 8 | . 2 3 2 1 Terminals 8 | . 2 3 2 1 Botnet 8 | . 2 3 2 1 Fabricators . | . . . . . Repair Stations . | . . . . . Recycling Units . | . . . . . Scanalyzers . | . . . . . Garrison Access . | . . . . . Data Cores Recovered 2 | . 2 . . . Used 1 | . 1 . . . Hacking Detections 13 | . 5 4 3 1 Full Trace Events . | . . . . . Feedback Events . | . . . . . Feedback Blocked . | . . . . . Robot Schematics Acquired . | . . . . . Robots Built . | . . . . . Authchips . | . . . . . Time . | . . . . . Total Robot Build Rating . | . . . . . Part Schematics Acquired . | . . . . . Parts Built . | . . . . . Authchips . | . . . . . Time . | . . . . . Total Part Build Rating . | . . . . . Parts Repaired . | . . . . . Time . | . . . . . Parts Recycled . | . . . . . Recycled Matter . | . . . . . Retrieved Matter . | . . . . . Retrieved Components . | . . . . . Parts Scanalyzed . | . . . . . Part Schematics Acquired . | . . . . . Parts Damaged . | . . . . . Bothacking | -11 -10 -9 -8 -7 ------------ Run | Yrd Mat Mat Mat Fac Used RIF Installer . | . . . . . Robots Hacked . | . . . . . Non-combat . | . . . . . Combat . | . . . . . Robot Hacks Applied . | . . . . . Relay Couplers Released . | . . . . . Fabnet Peak Effective % . | . . . . . Robots Rewired . | . . . . . Allies Hacked . | . . . . . Hacks Repelled . | . . . . . Allies | -11 -10 -9 -8 -7 -------- Run | Yrd Mat Mat Mat Fac Total Allies . | . . . . . Largest Group . | . . . . . Highest-Rated Group . | . . . . . Highest-Rated Ally . | . . . . . Total Orders . | . . . . . Ally Attacks . | . . . . . Total Damage . | . . . . . Kills . | . . . . . Allies Corrupted . | . . . . . Allies Melted . | . . . . . Intel | -11 -10 -9 -8 -7 ------- Run | Yrd Mat Mat Mat Fac Robot Analysis Total 2 | . 1 1 . . Derelict Logs Recovered . | . . . . . Drone Launches . | . . . . . Drone Recoveries . | . . . . . Exploration | -11 -10 -9 -8 -7 ------------- Run | Yrd Mat Mat Mat Fac Turns Passed 2302 | 125 507 592 577 501 Spaces Moved 1401 | 76 317 367 320 321 Core 24 | 24 . . . . Treads . | . . . . . Legs 1377 | 52 317 367 320 321 Wheels . | . . . . . Hover . | . . . . . Flight . | . . . . . Fastest Speed 50 | 50 120 120 120 120 Average Speed 119 | 97 120 120 120 122 Slowest Speed 190 | 120 120 120 190 123 Overloaded Moves . | . . . . . Propulsion Burnouts . | . . . . . Robots Hopped . | . . . . . Cave-ins Triggered . | . . . . . Exploration Rate (%) 29 | 5 59 32 40 9 Regions Visited 4 Branch Regions . Pre-discovered Areas . | . . . . . Known Exits Taken 3 | . 1 1 1 . Unknown Exits Taken 1 | 1 . . . . Scrap Searched . | . . . . . Spaces Dug 3 | . . . . 3 Terrain Destroyed 23 | . . 18 2 3 Melee . | . . . . . Projectile 2 | . . . 2 . AOE 21 | . . 18 . 3 Terrain Rammed . | . . . . . Walls Destroyed . | . . . . . Machines Disabled . | . . . . . Actions | -11 -10 -9 -8 -7 --------- Run | Yrd Mat Mat Mat Fac Total 1750 | 100 384 454 416 396 Wait 94 | . 11 21 16 46 Move 1397 | 75 316 366 319 321 Hop . | . . . . . Pick Up 34 | 6 10 8 7 3 Fast Attach 5 | 4 . . 1 . Attach 12 | 3 . 2 5 2 Detach . | . . . . . Swap 33 | . 6 12 11 4 Drop 30 | . 9 11 8 2 Fire 143 | 12 32 34 48 17 Melee . | . . . . . Ram . | . . . . . Kick 2 | . . . 1 1 Crush . | . . . . . Escape Stasis . | . . . . . Rewire . | . . . . . Trap . | . . . . . Miscellaneous . | . . . . . Route ------- -11/Scrapyard -10/Materials (discovered 4 exits: *Mat x3 / *Min) -9/Materials (discovered 5 exits: *Mat x3 / [*Min x2]) -8/Materials (discovered 4 exits: *Fac x3 / *Sto) -7/Factory History --------- Turn | Location | Event 2 | -11/Scrapyard | Met Revision 17 15 | -11/Scrapyard | Discovered new exit (range 15) 126 | -11/Scrapyard | Entered Materials 152 | -10/Materials | Identified exit to Mines 307 | -10/Materials | Build established: Mutant 604 | -10/Materials | Identified exit to Materials 633 | -10/Materials | Entered another Materials area 633 | -9/Materials | Evolved 2 slots: Propulsion x2 681 | -9/Materials | Identified exit to Materials 834 | -9/Materials | Build established: Scavenger-Mutant 935 | -9/Materials | Discovered new exit (range 9) 1146 | -9/Materials | Discovered new exit (range 9) 1225 | -9/Materials | Entered another Materials area 1225 | -8/Materials | Evolved 2 slots: Utility x2 1467 | -8/Materials | Lost 3 parts (2n1w) 1479 | -8/Materials | Discovered new exit (range 16) 1515 | -8/Materials | Identified exit to Storage 1768 | -8/Materials | Identified exit to Factory 1802 | -8/Materials | Entered Factory 1802 | -7/Factory | Evolved 2 slots: Utility x2 2303 | -7/Factory | Self-destructed Last Messages --------------- 02044_ Terminal disabled. 02044_ Door malfunctions. 02065_ U-05 Engineer lays Concrete. 02071_ Kicked U-05 Engineer out of the way. 02072_ ALERT: Construction progress impeded, dispatching reinforcements to local area. 02098_ S-27 Virus destroyed. 02104_ S-27 Virus suffers critical hit (Burn). 02107_ VTOL Module melted. 02107_ Lgt. Nuclear Core melted. 02107_ S-27 Virus destroyed. 02112_ Acquired 27 matter. 02114_ Acquired 1 matter. 02126_ Dropped Aluminum Leg. 02129_ Acquired System Restoration Module. 02146_ Acquired 10 matter. 02170_ Destroyed Imp. Hover Unit. 02170_ W-25 Informer suffers critical hit (Meltdown). 02303_ Dropped Hrd. Light Armor Plating. 02303_ Acquired Imp. Light Armor Plating. Map ----- +----------------------------------------------------+ | | | | | | | | | | | | | | | | | | | | | | | | | ?????????????????????????????????????????????????? | | ??????#######????????????????????????????????????? | | ??????# #????????????????????????????????????? | | ??????# """ #????????????????????????????????????? | | ####??# """ #####????????????????????????????????? | | #??# """ + #????????????????????????????????? | | #??# # #????????????????????????????????? | | #### """ # #????????????????????????????????? | | + """ # ############?????????????????????? | | ##### # """ / ???Y???????????????? | | # # # #??????????????????????????? | | # #! # #??????????????????????????? | | # # # ##########??r??????????????? | | # ####### ##!@ / #?????????????????? | | + ## #?????????????????? | | # ############### ## "" #?????????????????? | | # #???????####### ## """ #?????????????????? | | ! # #???????# # ## S" #?????????????????? | | ]# #???????#! ! !# ## #?????????????????? | | #+### #???????# # ########+# #?????????????? | | ???????# "" + % #?????????????? | | ???????#! F" # #?????????????? | | **/ #??????# " # """" ##?????????????? | | ** #??????# "" # "F " #??????????????? | | ** #??????# # #??????????????? | | #??????#+##### ##+#??????????????? | | #????????????# #?????????????????? | | """ +????????????# #?????????????????? | | """ #????????##??# #?????????????????? | | """ ######## ? +?????????????????? | | ^ ###?????????????????? | | """ ? ???????????????????? | | """ ???????????????????? | | """ ?? ???????????????????? | | ???? ???????????????????? | | % #??????????######+## ???????????????????? | | % #???????????????????????????????????????? | | #####+#####??????????????????????????????????????? | +----------------------------------------------------+ Best States ------------- Heat Dissipation 53 Energy Generation 14 Energy Capacity 275 Matter Stores 300 Matter Capacity 300 Sight Range 16 Robot Scan Range 15 Terrain Scan Density 10 Armor Coverage 225 Evasion (%) 55 Offensive Hacking 10 Item Schematics ----------------- None Robot Schematics ------------------ None Fabricated ------------ Nothing Alien Tech Used ----------------- None Achievements -------------- None Challenges ------------ None Game ------ Seed MeleeThermicCleaver Manual? 0 Play Time 00:33:15 Cumulative 215.0 hours Start 2024.10.06 @ 22:56:45 End 2024.10.15 @ 12:08:09 Sessions 3 Manual Loads 0 Difficulty Rogue Special Mode None Game No. 365 Rogue 365 Adventurer 0 Explorer 0 Win Type - Total 1 Types 1/0/0/0/0/0/0/0/0 Lore% 30 Gallery% 51 Achievement% 38 Wizard Run 0 Options --------- Layout 1 ASCII 0 Keyboard 1 Movement Vi Keybinds 0 Fullscreen 0 Font 20/SmallcapsGlow Map View 59x39 Zoom Use 0% Tactical HUD 1 Map Filters NONE Filters NONE Steam 1 RUN: 0a6c0d2c-ce4a-4d8d-8b7c-3061c99342b1